bitfinex/quotes_ETHUSD_20260208
["timestamp","ask_amount","ask_price","bid_price","bid_amount"]
[1770569636420,0.0450045,2080.1,2078.4,1.20284834]
[1770569636606,3.36,2079.9,2078.4,1.20284834]
[1770569636809,0.0450045,2079.8,2078.4,1.20284834]
[1770569637017,3.36,2079.9,2078.4,1.20284834]
[1770569637434,1.20203865,2079.8,2078.1,4.81239337]
[1770569637621,1.20203865,2079.8,2078.2,0.0450045]
[1770569638127,1.20203865,2079.8,2078.2,1.03837466]
[1770569639635,4.80815463,2079.9,2078.3,1.20290622]
[1770569640219,8.16815463,2079.9,2078.3,1.20290622]
[1770569640416,8.16815463,2079.9,2078.5,0.0450045]
[1770569640417,3.36,2079.9,2078.5,0.0450045]
[1770569641038,3.36,2079.9,2078.5,1.03837466]
[1770569641219,3.36,2079.9,2078.7,9.10854616]
[1770569641531,3.36,2079.9,2078.7,0.99337016]
[1770569641752,3.36,2079.9,2078.8,1.20261689]
[1770569642236,1.20175183,2080.3,2078.8,2.19598705]
[1770569642903,1.20175183,2080.3,2078.9,0.99337016]
[1770569643127,0.002,2080.4,2078.9,0.99337016]
[1770569643330,1.20372905,2080.4,2078.9,0.99337016]
[1770569643524,0.002,2080.4,2078.9,0.99337016]
[1770569643726,0.002,2080.4,2079.2,1.20238553]
[1770569645745,0.002,2080.4,2079.2,2.24076019]
[1770569646053,0.002,2080.4,2079.3,4.35337016]
[1770569646939,0.002,2080.4,2079.5,0.0450045]
[1770569647253,0.002,2080.4,2079.5,0.99337016]
[1770569647633,0.002,2080.4,2079.3,3.36]
[1770569647856,0.002,2080.4,2079.4,1.20226988]
[1770569648268,0.002,2080.4,2079.8,0.0450045]
[1770569648466,4.80432492,2081.5,2079.8,1.03837466]
[1770569648774,0.92823193,2081.5,2079.8,0.99337016]
[1770569649440,0.97323643,2081.0,2079.4,1.20226988]
[1770569649868,1.20140323,2080.9,2079.4,1.20226988]
[1770569650069,2.12961352,2081.0,2079.4,1.20226988]
[1770569650262,0.92823193,2080.9,2079.4,1.20226988]
[1770569651541,0.97323643,2080.7,2079.2,1.20237149]
[1770569651760,0.92823193,2080.5,2078.8,4.81042193]
[1770569652940,0.92823193,2080.3,2078.8,1.20261689]
[1770569653668,0.92823193,2080.1,2078.3,0.001]
[1770569653849,1.20209645,2079.7,2078.3,0.001]
[1770569654047,0.97323643,2079.5,2078.3,0.001]
[1770569654247,0.97323643,2079.1,2078.3,0.001]
[1770569654556,0.97323643,2079.1,2077.2,0.99337016]
[1770569654557,0.92823193,2079.1,2077.3,0.0450045]
[1770569654873,0.1474045,2079.4,2077.0,0.1414464]
[1770569654874,0.92062422,2078.9,2077.0,0.1414464]
[1770569655167,0.92062422,2078.7,2077.5,1.20333827]
[1770569655357,0.92062422,2078.4,2074.0,13.66550155]
[1770569655562,0.92062422,2076.5,2074.7,0.0450045]
[1770569655761,0.92062422,2077.0,2075.2,1.249704]
[1770569655942,0.92062422,2077.0,2075.5,0.0450045]
[1770569656244,3.36,2077.1,2075.8,0.0450045]
[1770569656449,1.17220604,2077.5,2075.9,0.0450045]
[1770569656663,2.37557885,2077.5,2075.9,0.0450045]
[1770569656869,2.37557885,2077.5,2076.8,0.0450045]
[1770569657069,2.37557885,2077.5,2076.6,0.001]
[1770569657070,0.25158182,2077.5,2076.6,0.001]
[1770569657243,0.25158182,2077.5,2076.6,0.0460045]
[1770569657438,1.45495358,2077.5,2076.6,0.001]
[1770569657874,0.25158182,2077.5,2076.1,0.0450045]
[1770569658170,0.25158182,2077.5,2076.4,0.0450045]
[1770569658774,0.16527532,2077.5,2077.0,0.0450045]
[1770569659070,1e-08,2077.5,2077.0,0.0450045]
[1770569659445,1e-08,2077.5,2076.4,0.0450045]
[1770569659648,1e-08,2077.5,2076.2,3.361]
[1770569659963,1e-08,2077.5,2076.3,1.20406492]
[1770569660150,1e-08,2077.5,2076.4,0.0450045]
[1770569661472,1.20307988,2078.0,2076.4,0.0450045]
[1770569661964,5.73294375,2078.1,2076.5,1.20394895]
[1770569662193,1.20302199,2078.1,2076.7,0.0450045]
[1770569662352,1.20279047,2078.5,2077.3,0.0450045]
[1770569662743,1.20255904,2078.9,2077.3,0.0450045]
[1770569663372,1.20255904,2078.9,2076.5,2.11082596]
[1770569663373,0.92062422,2078.8,2077.1,0.0450045]
[1770569663795,0.92062422,2078.6,2076.9,0.0450045]
[1770569663944,1.20279047,2078.5,2077.0,1.20365912]
[1770569664479,0.92062422,2078.4,2075.9,0.0450045]
[1770569664705,0.0450045,2078.0,2076.0,0.90687701]
[1770569664981,0.92062422,2077.8,2076.5,1.20394633]
[1770569665187,0.92062422,2077.4,2075.4,4.86331208]
[1770569665365,3.362,2077.9,2076.5,1.2039145]
[1770569665366,0.0450045,2077.8,2076.5,1.2039145]
[1770569665690,3.362,2078.1,2075.8,4.81737955]
[1770569665691,3.362,2078.1,2076.9,1.20370667]
[1770569665851,3.362,2078.1,2076.7,1.20379981]
[1770569666163,0.0450045,2077.7,2076.1,4.81666912]
[1770569666368,0.0450045,2077.7,2075.5,1.15839045]
[1770569666369,0.96562872,2076.6,2075.5,0.25151344]
[1770569666562,0.0450045,2077.4,2075.6,0.0450045]
[1770569666563,0.92062422,2077.4,2075.6,0.0450045]
[1770569666876,0.0450045,2077.0,2075.2,0.92354071]
[1770569667177,0.92062422,2077.3,2076.0,1.20421839]
[1770569667359,0.92062422,2077.3,2076.0,1.20423157]
[1770569668073,0.0450045,2076.9,2075.2,1.57887701]
[1770569668257,0.0450045,2076.8,2075.5,1.2045037]
[1770569668454,0.96562872,2076.8,2075.3,1.20461423]
[1770569668653,0.96562872,2076.8,2075.2,4.8186486]
[1770569668654,0.96562872,2076.8,2075.0,4.81906922]
[1770569668858,0.96562872,2076.8,2074.8,0.0450045]
[1770569669181,0.92062422,2075.8,2074.4,0.24991597]
[1770569669379,0.92062422,2075.8,2074.3,0.25167664]
[1770569669380,0.92062422,2075.8,2074.3,1.45689356]
[1770569669579,0.92062422,2075.8,2074.3,1.20521692]
[1770569669795,1.162,2076.0,2074.3,1.2052246]
[1770569669993,1.20435494,2075.8,2073.8,1.20551644]
[1770569670204,0.0450045,2075.3,2073.8,1.20551644]
[1770569670495,0.92062422,2075.5,2073.8,1.20551644]
[1770569670496,0.0450045,2075.4,2073.8,1.20551644]
[1770569670860,0.96562872,2075.4,2073.8,1.20551644]
[1770569671069,0.0450045,2075.3,2073.8,1.20551644]
[1770569671283,0.96562872,2075.0,2073.6,1.20558739]
[1770569671479,0.0450045,2074.9,2073.7,1.20556451]
[1770569671785,0.92062422,2075.0,2073.7,1.2055664]
[1770569672082,0.92062422,2075.0,2073.4,4.8229339]
[1770569672083,1.20493541,2074.8,2073.1,0.90687701]
[1770569672254,4.81726111,2075.9,2073.9,4.8713885]
[1770569672458,4.91958772,2076.3,2073.9,4.8713885]
[1770569672459,1.20394895,2076.5,2074.5,0.0450045]
[1770569672684,1.24895345,2076.5,2074.6,3.03464]
[1770569672871,1.20394895,2076.5,2074.6,3.03464]
[1770569673095,1.20394895,2076.5,2074.8,0.0450045]
[1770569673309,1.20394895,2076.5,2074.9,3.55554]
[1770569673613,4.81467877,2077.0,2075.2,0.0450045]
[1770569673811,1.20354323,2077.2,2075.6,11.58143]
[1770569673977,1.20354323,2077.2,2075.6,4.05639]
[1770569674174,1.20336943,2077.5,2076.1,0.0450045]
[1770569674379,4.81304606,2077.7,2076.4,0.0450045]
[1770569674603,1.20325359,2077.7,2076.4,0.0450045]
[1770569674808,3.365,2077.8,2076.4,0.0450045]
[1770569676006,0.002,2077.9,2076.9,0.0450045]
[1770569676210,0.002,2077.9,2076.6,1.20389097]
[1770569676391,0.002,2077.9,2076.7,6.467785]
[1770569676579,0.002,2077.9,2076.7,5.438785]
[1770569676907,0.002,2077.9,2076.7,3.05839]
[1770569678184,0.002,2077.9,2076.8,1.20377503]
[1770569678499,0.002,2077.9,2076.9,15.256201]
[1770569678702,0.002,2077.9,2077.0,14.23751]
[1770569679013,0.002,2078.1,2077.3,0.95188151]
[1770569679179,0.002,2078.1,2077.5,7.733949]
[1770569679493,0.002,2078.1,2077.5,5.10704]
[1770569679703,0.002,2078.1,2077.9,0.0450045]
[1770569680004,1.20203865,2079.8,2078.0,7.652199]
[1770569680206,4.80803165,2079.9,2078.1,1.20302199]
[1770569680409,0.002,2079.8,2078.3,7.935536]
[1770569680596,0.002,2079.8,2078.3,8.84241301]
[1770569680905,0.002,2079.8,2078.3,4.154815]
[1770569681109,0.002,2080.2,2079.1,0.95188151]
[1770569681320,0.002,2080.2,2079.4,0.95188151]
[1770569681518,13.49506198,2082.9,2080.8,0.0450045]
[1770569681519,0.24968521,2082.7,2080.8,0.0450045]
[1770569681819,0.002,2082.9,2081.6,0.0450045]
[1770569682112,0.0450045,2082.2,2080.1,0.90687701]
[1770569682417,1.20088385,2081.8,2080.4,1.20169198]
[1770569682710,1.20088385,2081.8,2080.3,1.24672278]
[1770569683080,1.20059549,2082.3,2080.6,0.0450045]
[1770569683285,1.24559999,2082.3,2080.3,1.24672278]
[1770569683481,1.24559999,2082.3,2080.3,1.20174777]
[1770569683482,0.0450045,2082.0,2080.3,1.20174777]
[1770569683687,0.0450045,2082.1,2080.3,1.20174777]
[1770569683984,0.96562872,2082.1,2080.3,1.20174777]
[1770569684408,0.0450045,2081.5,2080.0,0.25101635]
[1770569684808,0.96562872,2081.4,2080.0,0.25101635]
[1770569685200,0.92062422,2081.4,2080.0,0.25101635]
[1770569685403,0.0450045,2081.8,2080.0,1.4529153]
[1770569686099,0.0450045,2081.5,2080.0,0.25101635]
[1770569686285,0.0450045,2081.2,2080.0,0.25101635]
[1770569686488,0.0450045,2080.9,2080.0,0.25101635]
[1770569686686,0.0450045,2080.6,2079.0,1.20247276]
[1770569686895,0.0450045,2080.6,2079.2,1.20238527]
[1770569687195,1.20128778,2081.1,2079.0,4.80999207]
[1770569687196,1.20128778,2081.1,2079.1,0.0450045]
[1770569687400,1.20128778,2081.1,2079.7,1.20205657]
[1770569687586,0.5,2080.7,2079.6,1.20214782]
[1770569687803,0.5,2080.7,2079.3,4.80910679]
[1770569687991,0.5,2080.7,2079.6,1.20211577]
[1770569688312,0.0450045,2080.6,2079.1,1.20240191]
[1770569688487,1.20163422,2080.5,2078.7,10.732953]
[1770569688694,1.20163422,2080.5,2078.8,0.0450045]
[1770569690426,1.24663872,2080.5,2078.6,4.81078266]
[1770569690619,1.20163422,2080.5,2078.6,4.81078266]
[1770569690922,1.20163422,2080.5,2078.8,0.0450045]
[1770569691131,1.20163422,2080.5,2078.9,5.643053]
[1770569691334,1.20163422,2080.5,2078.9,4.635053]
[1770569691505,1.20163422,2080.5,2078.8,0.0450045]
[1770569691828,1.20163422,2080.5,2078.8,1.01475094]
[1770569692932,4.80653689,2080.6,2079.0,1.2025012]
[1770569693651,1.20157646,2080.6,2079.1,1.01475094]
[1770569694457,1.20157646,2080.6,2079.2,9.37862]
[1770569694664,1.20157646,2080.6,2079.0,1.2025012]
[1770569694814,1.20157646,2080.6,2078.9,4.81000481]
[1770569695153,1.20157646,2080.6,2079.0,0.001]
[1770569695323,0.002,2080.3,2079.0,0.001]
[1770569695935,0.002,2080.3,2079.1,0.0450045]
[1770569696126,0.002,2080.3,2079.2,9.407815]
[1770569696343,0.002,2080.3,2079.4,0.0450045]
[1770569696652,0.002,2080.3,2079.2,11.246504]
[1770569696851,0.002,2080.3,2079.5,1.20221207]
[1770569698830,0.002,2080.3,2079.0,0.001]
[1770569699027,0.002,2080.3,2079.0,0.0460045]
[1770569700351,0.002,2080.3,2079.1,8.41803644]
[1770569700556,0.002,2080.3,2079.3,1.01475094]
[1770569700852,0.002,2080.3,2079.7,1.20209645]
[1770569701261,0.002,2080.3,2079.6,1.2471158]
[1770569701415,0.002,2080.3,2079.6,1.2021113]
[1770569702046,0.002,2080.3,2079.6,1.2471158]
[1770569702520,1.20099923,2081.6,2079.9,0.0450045]
[1770569703048,1.03061227,2081.5,2079.9,1.20193788]
[1770569703342,0.0450045,2081.4,2079.9,1.20193788]
[1770569703532,1.03061227,2081.4,2079.9,1.20197489]
[1770569703728,0.98560777,2081.4,2079.9,1.20197489]
[1770569703930,0.98560777,2081.4,2079.8,1.20200223]
[1770569704142,0.98560777,2081.4,2079.9,1.20197593]
[1770569704441,0.0450045,2081.2,2079.9,1.20197593]
[1770569704835,0.98560777,2081.4,2079.9,1.20197593]
[1770569705240,1.20117234,2081.3,2079.6,3.43233]
[1770569705550,1.20117234,2081.3,2079.5,0.96974644]
[1770569706120,1.20117234,2081.3,2079.6,3.102]
[1770569706737,1.20117234,2081.3,2079.5,0.96974644]
[1770569706935,1.20117234,2081.3,2079.6,0.0450045]
[1770569707135,1.20117234,2081.3,2079.7,1.20209645]
[1770569707344,1.20117234,2081.3,2079.8,3.102861]
[1770569707525,0.5,2081.1,2080.2,0.0450045]
[1770569707723,4.80407741,2081.6,2080.2,1.01475094]
[1770569708344,1.20099923,2081.6,2080.2,0.96974644]
[1770569708562,2.186607,2081.6,2080.0,3.359]
[1770569708819,8.16378881,2081.7,2080.0,3.359]
[1770569708820,0.002,2081.1,2080.3,16.20323144]
[1770569709135,0.002,2081.1,2080.4,1.20169198]
[1770569709449,0.002,2081.1,2079.8,5.77789183]
[1770569709752,0.002,2081.1,2080.1,1.20183594]
[1770569709919,0.002,2081.1,2080.2,1.20179561]
[1770569710122,0.002,2081.1,2080.2,1.20180059]
[1770569710362,0.002,2081.1,2079.7,3.359]
[1770569710570,0.002,2081.1,2079.8,4.80810256]
[1770569710715,0.002,2081.1,2079.9,1.20193548]
[1770569710921,1.03261227,2081.1,2079.7,4.561054]
[1770569711250,0.98760777,2081.1,2079.8,1.20203457]
[1770569711431,2.23195777,2081.0,2079.6,1.20212147]
[1770569711633,2.23195777,2081.0,2079.7,1.2020916]
[1770569712050,2.18695327,2081.0,2079.7,1.2020916]
[1770569712349,0.98560777,2080.5,2079.2,1.20238439]
[1770569712756,1.03061227,2080.4,2079.0,0.001]
[1770569712959,0.98560777,2080.4,2079.0,1.20349175]
[1770569713252,0.0450045,2080.6,2079.0,0.001]
[1770569713460,4.56055324,2080.7,2079.4,0.0450045]
[1770569713756,1.20155324,2080.7,2079.3,3.359]
[1770569714119,2.18716101,2080.7,2079.3,3.359]
[1770569714324,0.0450045,2080.5,2079.3,3.359]
[1770569714550,2.18716101,2080.7,2079.3,3.359]
[1770569714949,1.20155324,2080.7,2079.3,3.359]
[1770569715674,1.2013455,2081.0,2079.5,0.91209685]
[1770569716074,0.0450045,2080.9,2079.4,1.20226988]
[1770569716372,0.96945041,2080.9,2079.3,3.359]
[1770569716672,0.0450045,2080.6,2079.3,3.359]
[1770569716962,0.96945041,2080.9,2079.3,4.56131964]
[1770569717163,1.2013455,2081.0,2079.3,5.47341649]
[1770569717331,0.0450045,2080.9,2079.3,5.47341649]
[1770569717536,1.20146097,2080.8,2079.3,4.56127586]
[1770569718147,0.0450045,2080.6,2079.3,4.56132206]
[1770569718564,2.12590688,2080.8,2079.3,4.56132206]
[1770569720070,1.20146097,2080.8,2079.3,4.56132206]
[1770569720373,1.20146097,2080.8,2079.3,5.47341891]
[1770569720667,4.80551629,2081.0,2079.4,0.91209685]
[1770569721366,4.80551629,2081.0,2079.5,0.001]
[1770569721367,0.0450045,2080.8,2079.5,0.001]
[1770569721563,4.80551629,2081.0,2079.5,0.001]
[1770569722060,1.20151871,2080.7,2079.5,0.001]
[1770569722539,0.5450045,2080.5,2079.5,0.001]
[1770569722947,0.5,2080.5,2079.5,0.001]
[1770569724055,1.20169198,2080.4,2079.5,0.001]
[1770569724358,1.20166446,2080.5,2079.5,0.001]
[1770569724752,1.20146097,2080.8,2079.5,0.001]
[1770569725266,1.20146097,2080.8,2079.5,0.91309685]
[1770569726051,1.2013455,2081.0,2079.6,1.20215426]
[1770569727562,0.5,2080.8,2079.6,1.20215426]
[1770569728149,1.7014922,2080.8,2079.6,0.91209685]
[1770569728352,1.20137631,2081.0,2079.8,0.91209685]
[1770569729458,3.361,2081.1,2079.8,0.91209685]
[1770569729662,4.56228788,2081.1,2079.5,5.72171389]
[1770569729868,4.56228788,2081.1,2079.6,4.2]
[1770569730172,4.56228788,2081.1,2079.7,0.91209685]
[1770569730473,4.56228788,2081.1,2079.9,9.209597]
[1770569730655,4.56228788,2081.1,2079.9,3.098]
[1770569730854,4.56228788,2081.1,2079.8,2.1141355]
[1770569730855,0.002,2081.1,2080.0,0.95710135]
[1770569731061,1.20329238,2081.1,2080.0,0.95710135]
[1770569731276,0.002,2081.1,2080.0,0.95710135]
[1770569731470,1.20330338,2081.1,2080.0,0.91209685]
[1770569731659,0.002,2081.1,2080.0,0.91209685]
[1770569731972,1.20331044,2081.1,2080.0,0.91209685]
[1770569732155,0.002,2081.1,2080.0,0.91209685]
[1770569732353,0.002,2081.1,2080.1,1.20186529]
[1770569732596,0.002,2081.1,2080.1,2.11396214]
[1770569733475,0.002,2081.1,2080.1,1.20186529]
[1770569734345,0.002,2081.1,2080.0,4.80746117]
[1770569734346,0.002,2081.1,2080.0,0.95710135]
[1770569734675,0.002,2080.9,2080.6,0.91209685]
[1770569735076,0.00200001,2081.5,2080.8,0.91209685]
[1770569735373,0.002,2082.0,2081.0,0.91209685]
[1770569735543,0.002,2082.0,2081.0,0.95710135]
[1770569735752,0.002,2081.9,2081.0,0.95710135]
[1770569735949,0.002,2082.0,2081.3,7.19416285]
[1770569736145,0.002,2082.0,2081.4,4.208603]
[1770569736352,0.004,2082.0,2081.4,1.20107555]
[1770569736990,0.002,2082.0,2081.4,1.20107555]
[1770569737294,0.004,2082.0,2081.4,1.20107555]
[1770569737468,0.004,2082.0,2081.4,1.20111136]
[1770569737788,0.004,2082.0,2081.2,8.16287047]
[1770569737995,0.004,2082.0,2081.2,3.358]
[1770569738226,0.004,2082.0,2081.3,1.20115219]
[1770569738401,0.004,2082.0,2081.3,1.20117234]
[1770569738897,0.004,2082.0,2081.2,8.16289042]
[1770569738898,0.004,2082.0,2081.2,3.358]
[1770569739069,0.002,2082.0,2080.7,1.20151265]
[1770569739265,0.002,2081.9,2080.7,1.20151735]
[1770569739496,0.002,2081.9,2080.8,1.20141885]
[1770569739696,0.002,2081.9,2080.4,0.91209685]
[1770569739997,0.002,2081.9,2080.9,1.20139438]
[1770569740194,0.002,2081.9,2080.8,1.20142192]
[1770569740377,0.002,2082.0,2080.6,1.20157646]
[1770569740567,0.002,2081.8,2080.6,2.11367331]
[1770569740995,0.002,2081.8,2080.6,1.20157646]
[1770569741187,0.002,2081.7,2080.7,16.208942]
[1770569741383,0.002,2081.9,2080.7,16.208942]
[1770569741574,0.002,2081.9,2080.6,1.20157646]
[1770569741575,0.002,2081.9,2080.9,0.91209685]
[1770569741776,0.002,2081.9,2081.0,0.91209685]
[1770569742690,0.002,2082.0,2081.3,9.2409]
[1770569743008,0.004,2082.0,2081.4,6.29024]
[1770569743183,0.002,2082.0,2081.5,3.357]
[1770569743385,0.002,2082.6,2081.9,0.91209685]
[1770569743692,0.002,2082.8,2081.6,1.3]
[1770569744099,0.002,2082.8,2081.2,3.357]
[1770569744303,0.0450045,2082.6,2081.2,3.357]
[1770569744500,0.002,2082.8,2081.2,3.357]
[1770569744708,0.002,2082.8,2081.3,2.16131608]
[1770569744887,0.002,2082.8,2081.3,1.20117234]
[1770569744888,0.0450045,2082.6,2081.3,1.20117234]
[1770569745207,0.98252907,2082.8,2081.3,1.20117234]
[1770569746596,0.002,2082.8,2081.3,1.20117234]
[1770569746785,0.002,2082.8,2081.4,0.001]
[1770569747313,0.002,2082.6,2081.4,0.001]
[1770569747841,0.002,2082.5,2081.4,0.001]
[1770569748386,0.002,2082.5,2081.4,0.97164055]
[1770569748828,0.002,2082.5,2081.7,1.20094153]
[1770569748987,0.002,2082.5,2081.8,0.0480242]
[1770569749308,0.002,2082.5,2081.9,3.357]
[1770569750109,0.002,2082.6,2081.9,4.32764055]
[1770569750908,0.002,2082.6,2082.0,2.17140904]
[1770569751418,0.002,2082.6,2081.9,8.16007396]
[1770569751419,0.002,2082.6,2081.9,4.55779119]
[1770569753099,0.002,2082.6,2081.9,1.2008227]
[1770569753410,0.002,2082.6,2081.9,1.2008198]
[1770569755090,0.002,2082.6,2081.7,4.80330467]
[1770569755517,0.002,2082.6,2081.8,0.97064055]
[1770569757094,0.002,2082.9,2082.1,1.20071082]
[1770569757305,0.002,2082.9,2082.2,3.356]
[1770569759424,0.002,2082.9,2082.3,1.20059549]
[1770569759620,0.002,2082.9,2082.2,4.55663524]
[1770569760409,0.002,2082.4,2082.3,0.97064055]
[1770569760605,0.002,2082.9,2082.2,4.55663524]
[1770569761414,0.002,2082.6,2082.2,4.55663524]
[1770569761602,0.002,2082.6,2082.2,4.55663342]
[1770569762109,0.002,2082.6,2082.2,1.20063342]
[1770569762710,0.002,2082.6,2082.1,1.20067774]
[1770569763009,0.002,2082.6,2082.2,1.20064554]
[1770569763217,0.002,2082.9,2082.3,0.97064055]
[1770569763415,0.002,2082.9,2082.4,2.17117839]
[1770569763615,0.002,2082.9,2082.5,3.355]
[1770569764912,0.002,2082.9,2082.6,3.355]
[1770569765730,0.002,2082.9,2082.7,1.20036491]
[1770569767018,0.002,2082.9,2082.5,1.20045375]
[1770569767217,0.002,2082.9,2082.4,1.20049314]
[1770569767421,0.002,2082.9,2082.6,1.20041741]
[1770569767623,0.002,2082.9,2082.5,1.20043532]
[1770569768132,0.002,2082.9,2082.5,1.20044938]
[1770569768333,0.002,2082.9,2082.4,1.20050824]
[1770569768720,0.002,2082.9,2082.5,1.20047672]
[1770569769243,0.002,2082.9,2082.1,3.355]
[1770569769443,0.002,2082.9,2082.0,0.001]
[1770569769746,0.002,2082.9,2082.0,3.356]
[1770569769913,0.002,2082.9,2082.0,4.55674617]
[1770569770119,0.002,2082.9,2082.0,4.55675564]
[1770569771338,0.002,2082.9,2082.0,4.45675564]
[1770569772221,0.002,2082.9,2082.0,5.42739619]
[1770569772542,0.002,2082.9,2082.2,0.97064055]
[1770569773644,1.19982585,2083.7,2082.4,0.97064055]
[1770569773818,1.19982585,2083.7,2082.5,3.355]
[1770569774247,5.77968441,2083.9,2082.6,3.355]
[1770569774552,0.002,2082.7,2082.6,3.355]
[1770569775635,0.002,2082.7,2082.5,1.20048019]
[1770569776348,0.002,2082.7,2082.2,0.001]
[1770569776643,0.002,2082.7,2082.2,3.356]
[1770569779035,0.002,2082.7,2082.2,4.55662185]
[1770569779968,0.002,2082.7,2082.2,5.55565948]
[1770569780922,0.002,2082.9,2082.4,0.99903763]
[1770569782143,0.002,2082.9,2082.3,0.0450045]
[1770569782144,0.002,2082.9,2082.5,0.99903763]
[1770569782944,1.19970863,2083.9,2082.6,2.19946017]
[1770569783148,1.19970863,2083.9,2082.7,4.35403763]
[1770569783345,1.52468287,2084.0,2082.7,4.35403763]
[1770569783523,0.32505613,2084.0,2082.8,0.99903763]
[1770569784152,0.32505613,2084.0,2082.9,1.04404213]
[1770569784548,1.19925912,2084.7,2083.4,1.04404213]
[1770569785033,0.002,2084.8,2083.5,4.553904]
[1770569785231,0.002,2084.8,2083.5,5.55294163]
[1770569785838,0.002,2084.8,2083.5,1.199904]
[1770569786158,0.93544836,2084.8,2083.6,3.354]
[1770569787164,1.19921331,2084.7,2083.7,1.19978883]
[1770569787325,1.19921331,2084.7,2083.6,4.55381356]
[1770569787326,2.13266167,2084.7,2083.6,4.55381356]
[1770569787641,2.13266167,2084.7,2083.5,4.79947313]
[1770569787642,0.93344836,2084.6,2083.5,1.19988477]
[1770569787839,0.93544836,2084.6,2083.3,1.19998529]
[1770569788358,0.93544836,2084.6,2083.0,1.04404213]
[1770569788552,0.002,2084.6,2083.6,1.19984178]
[1770569788852,0.002,2084.6,2083.6,4.55384178]
[1770569789232,0.002,2084.6,2083.6,1.19984178]
[1770569790260,0.93544836,2084.6,2083.6,1.19984351]
[1770569790554,0.93544836,2084.6,2083.4,8.15379753]
[1770569790555,0.93544836,2084.6,2083.5,1.19987289]
[1770569790768,0.93544836,2084.6,2083.6,1.19983472]
[1770569790929,0.002,2084.6,2083.6,1.19983472]
[1770569791331,0.002,2084.6,2083.5,4.79938567]
[1770569791829,0.93544836,2084.6,2083.1,4.80053327]
[1770569792030,0.93544836,2084.6,2083.4,1.19992827]
[1770569792229,0.002,2084.6,2083.5,3.354]
[1770569792430,0.002,2084.6,2083.5,4.35303763]
[1770569792945,0.002,2084.6,2083.5,4.39804213]
[1770569793667,0.002,2084.6,2083.7,0.99903763]
[1770569793831,0.002,2084.6,2083.6,1.19984641]
[1770569794184,0.93544836,2084.6,2082.9,0.99903763]
[1770569794455,0.93344836,2084.4,2083.4,1.19993352]
[1770569794631,0.93344836,2084.4,2083.3,1.19997736]
[1770569794835,0.93344836,2084.4,2083.1,1.20010821]
[1770569795135,0.93344836,2084.4,2083.0,1.20015803]
[1770569795326,0.93344836,2084.4,2083.0,1.20015626]
[1770569795756,1.19944345,2084.3,2083.0,1.20015626]
[1770569795950,0.93344836,2084.2,2083.0,1.20015626]
[1770569796148,0.93344836,2084.2,2082.9,0.936]
[1770569796347,0.93344836,2084.0,2082.7,1.20132201]
[1770569796733,0.93344836,2084.0,2082.7,0.001]
[1770569797154,0.93344836,2083.7,2082.7,0.001]
[1770569797356,0.93344836,2083.6,2082.7,0.001]
[1770569797552,0.97845286,2083.5,2082.7,0.001]
[1770569798147,0.93344836,2083.3,2082.5,0.001]
[1770569798961,0.93344836,2083.1,2082.5,0.001]
[1770569800269,0.93344836,2082.7,2081.8,0.001]
[1770569800475,1.20019203,2083.0,2081.8,1.2018352]
[1770569800687,0.97845286,2082.9,2081.8,0.001]
[1770569800971,0.93344836,2082.7,2081.8,0.001]
[1770569801185,3.354,2082.8,2081.4,0.001]
[1770569801186,0.93344836,2082.2,2081.4,0.001]
[1770569802254,4.80244038,2082.3,2081.4,0.001]
[1770569802560,5.7351791,2082.6,2081.4,0.001]
[1770569802874,1.20046289,2082.6,2081.4,0.001]
[1770569803044,8.15560527,2082.7,2081.5,1.04404213]
[1770569803045,3.354,2082.7,2081.5,1.04404213]
[1770569803245,4.80008794,2083.3,2081.7,0.99903763]
[1770569803961,0.93344836,2083.2,2081.4,0.001]
[1770569804344,2.13358277,2083.1,2081.5,1.20105693]
[1770569804541,0.93344836,2083.0,2081.5,1.20105693]
[1770569805467,0.97845286,2083.0,2081.4,1.20207924]
[1770569805669,0.93344836,2083.0,2081.4,1.20207924]
[1770569806249,1.20024965,2082.9,2081.6,1.20099923]
[1770569806570,1.1999616,2083.4,2081.7,0.92948346]
[1770569806778,4.8018464,2083.5,2081.9,0.0450045]
[1770569806779,2.19653607,2083.5,2081.9,0.0450045]
[1770569807144,0.9945911,2083.2,2081.6,1.20099923]
[1770569807366,0.9945911,2083.0,2081.6,1.20099923]
[1770569807746,1.0395956,2083.0,2081.5,1.20101463]
[1770569807946,0.9945911,2082.8,2081.5,1.20101463]
[1770569808141,0.9945911,2082.8,2081.4,1.20208279]
[1770569808345,1.0395956,2082.6,2081.4,0.001]
[1770569808579,1.20036491,2082.7,2081.4,0.001]
[1770569808775,0.9945911,2082.6,2081.4,0.001]
[1770569809071,1.0395956,2082.6,2081.4,0.001]
[1770569810473,2.19507129,2082.5,2081.4,0.001]
[1770569811172,0.9945911,2082.4,2081.4,0.001]
[1770569812370,1.20048019,2082.5,2081.4,0.001]
[1770569812573,4.80192076,2082.7,2081.4,0.001]
[1770569813157,0.9945911,2082.6,2081.4,0.001]
[1770569813351,0.9945911,2082.6,2081.6,0.001]
[1770569814083,1.20030727,2082.8,2081.6,0.001]
[1770569815083,5.79605074,2082.9,2081.6,0.001]
[1770569816083,1.0395956,2082.8,2081.6,0.001]
[1770569816755,0.9945911,2082.8,2081.6,0.001]
[1770569816956,1.20024965,2083.0,2081.7,1.20094153]
[1770569818361,1.20024965,2083.0,2081.8,0.92948346]
[1770569818666,1.20024965,2083.0,2081.9,0.97448796]
[1770569819065,8.15607799,2083.3,2082.1,0.92948346]
[1770569819066,1.2000768,2083.2,2082.1,0.92948346]
[1770569819369,1.19999398,2083.4,2082.3,0.92948346]
[1770569820180,0.002,2083.5,2082.3,0.92948346]
[1770569820383,1.20194137,2083.5,2082.3,0.92948346]
[1770569821182,0.002,2083.5,2082.4,2.1300213]
[1770569821374,0.002,2083.5,2082.5,0.92948346]
[1770569821563,0.002,2083.5,2082.3,1.20055212]
[1770569823282,0.002,2083.5,2082.2,1.20065315]
[1770569824379,1.0415956,2083.5,2082.1,1.20066672]
[1770569824770,1.0395956,2083.2,2081.7,1.20089823]